[Event "WWRR B-Group 2024"]
[Site "Wachtebeke"]
[Date "2024.02.12"]
[Round "2.2"]
[White "Dreelinck, Jacob"]
[Black "Vandenhole, Kobe"]
[Result "1-0"]
[ECO "B32"]
[WhiteElo "2196"]
[BlackElo "2081"]
[Annotator "TA"]
[PlyCount "57"]
[EventDate "2024.02.12"]
[EventType "tourn"]
[EventCountry "BEL"]
[SourceTitle "playchess.com"]
[Source "ChessBase"]
[SourceQuality "1"]
[TimeControl "40/5400+30:900+30"]

{[%evp 14,57,38,30,26,31,29,25,50,35,34,29,45,44,66,55,77,54,100,56,125,60,59,45,222,222,228,249,264,227,422,389,425,271,273,250,1056,1024,979,956,1530,1522,29991,29992,29994,29995]} 1. e4 {[%emt 0:00:03]} c5 {[%emt 0:00:13]} 2. Nf3 {[%emt 0:00:04][%cal Bg1f3,Bf3d4,Bd4b5,Bb5a3,Ba3c4][%mdl 32]} Nc6 {[%emt 0:00:05]} 3. d4 {[%emt 0:00:03]} cxd4 {[%emt 0:00:08]} 4. Nxd4 {[%emt 0:00:05]} e5 {[%emt 0:00:07]} 5. Nb5 {[%emt 0:00:06]} d6 {[%emt 0:00:09]} 6. N1c3 {[%emt 0:00:06]} a6 {[%emt 0:00:05]} 7. Na3 {[%emt 0:00:02]} Be7 {[%emt 0:00:17]} 8. Nc4 {[%emt 0:01:59]} b5 {[%emt 0:00:16][%cal Bb7b5,Bb5b4][%mdl 32]} 9. Ne3 {[%emt 0:00:05]} Nf6 {[%emt 0:00:09]} 10. Bd3 {[%emt 0:00:45]} O-O {[%emt 0:02:31] White has an edge.} 11. a4 {[%emt 0:02:43]} b4 {[%emt 0:05:28]} 12. Ncd5 {[%emt 0:00:18]} Rb8 {[%emt 0:03:44]} 13. O-O {[%emt 0:00:56][%cal Oa4a5]} a5 {[%emt 0:08:50]} 14. c3 {[%emt 0:02:29] White is more active.} Be6 {[%emt 0:03:10]} 15. Qe2 {[%emt 0:02:56]} g6 {[%emt 0:09:21]} (15... bxc3 $14 16. bxc3 Na7) 16. g3 {[%emt 0:02:31]} Nd7 {[%emt 0:03:35]} (16... bxc3 $14 17. bxc3 Bxd5 18. Nxd5 (18. exd5 Na7 $14) 18... Nxd5) 17. f4 {[%emt 0:03:40]} ({White should try} 17. Bb5 $16 Na7 18. cxb4 axb4 19. Nxb4) 17... exf4 $14 {[%emt 0:03:30]} 18. gxf4 {[%emt 0:00:45]} f5 $2 {[%emt 0:04:19] [#] Black cannot hold the game after this.} (18... Bh4 $14) 19. exf5 $18 {[%emt 0:10:25]} gxf5 {[%emt 0:00:24]} 20. Bb5 {[%emt 0:02:31]} Na7 {[%emt 0:06:56]} 21. Bc4 {[%emt 0:00:40]} ({Much less strong is} 21. cxb4 axb4 22. Nxf5 Bxf5 $18) 21... Nc5 $2 {[%emt 0:02:26]} (21... Bf6 22. cxb4 axb4 23. Nxf6+ (23. Nxf5 Nc5 $18) 23... Rxf6) 22. cxb4 {[%emt 0:01:38]} axb4 {[%emt 0:00:16]} 23. b3 {[%emt 0:01:19]} Bf6 {[%emt 0:08:12]} 24. Nxf5 {[%emt 0:17:18] Threatens to win with Qg2+.} Bxa1 $2 {[%emt 0:03:16]} (24... Bxd5 25. Bxd5+ Kh8) 25. Nh6+ {[%emt 0:00:28]} Kg7 {[%emt 0:03:16] [#]} 26. Qg2+ $1 {[%emt 0:00:18]} Kh8 {[%emt 0:00:18]} 27. Bb2+ {[%emt 0:00:48]} Rf6 {[%emt 0:00:43]} 28. Bxa1 {[%emt 0:01:57]} Bxd5 {[%emt 0:00:31]} 29. Bxd5 {[%emt 0:00:24] Weighted Error Value: White=0.22 (precise) /Black=0.76.  Loses game:     	---       	Black=1      Mistake:       	White=1     	Black=4      Inaccurate:     	White=2     	---        OK:         	White=6     	Black=6      Best:        	White=2     	---} 1-0

[Event "WWRR B-Group 2024"]
[Site "Wachtebeke"]
[Date "2024.02.12"]
[Round "2.3"]
[White "Kurt, Sascha"]
[Black "Schrik, Rachid"]
[Result "1/2-1/2"]
[ECO "B32"]
[WhiteElo "2002"]
[BlackElo "2179"]
[Annotator "TA"]
[PlyCount "76"]
[EventDate "2024.02.12"]
[EventType "tourn"]
[EventCountry "BEL"]
[SourceTitle "playchess.com"]
[Source "ChessBase"]
[SourceQuality "1"]
[TimeControl "40/5400+30:900+30"]

{[%evp 10,76,30,23,22,21,23,21,20,20,35,33,33,25,33,27,36,25,17,20,7,-15,0,-54,-64,-91,-16,-47,-50,-56,-46,-40,-43,-57,0,0,0,0,11,0,0,0,0,0,0,0,0,0,0,-6,0,0,0,0,12,7,13,0,0,-3,-5,0,0,0,0,0,107,103,152]} 1. e4 {[%emt 0:00:13]} c5 {[%emt 0:00:07]} 2. Nf3 {[%emt 0:00:34][%cal Bg1f3,Bf3d4,Bd4b5,Bb5a3,Ba3c2][%mdl 32]} Nc6 {[%emt 0:00:13]} 3. d4 {[%emt 0:00:36]} cxd4 {[%emt 0:00:09]} 4. Nxd4 {[%emt 0:00:08]} e5 {[%emt 0:00:09]} 5. Nb5 {[%emt 0:00:06]} d6 {[%emt 0:00:10]} 6. c4 {[%emt 0:00:19]} g6 {[%emt 0:01:00]} 7. N1c3 {[%emt 0:00:15] [#] Strongly threatening Nd5.} a6 {[%emt 0:00:34]} 8. Na3 {[%emt 0:00:05]} Nf6 {[%emt 0:03:13][%cal Bg8f6,Bf6h5,Bh5f4,Bf4h3][%mdl 32] The position is equal.} 9. Nc2 {[%emt 0:00:46]} Be6 {[%emt 0:03:59]} 10. Bd3 {[%emt 0:00:21]} Bg7 {[%emt 0:01:13]} 11. O-O {[%emt 0:00:18]} Rc8 {[%emt 0:03:06]} 12. b3 {[%emt 0:00:20]} O-O {[%emt 0:01:12][%cal Ob7b5]} 13. Bb2 {[%emt 0:00:07]} Nh5 {[%emt 0:02:12]} 14. Be2 {[%emt 0:05:12]} Nf4 {[%emt 0:03:37]} 15. g3 {[%emt 0:02:34]} Nh3+ {[%emt 0:02:54]} 16. Kg2 {[%emt 0:12:50]} (16. Kh1 $1 $11) 16... Ng5 $15 {[%emt 0:04:55]} 17. Rg1 {[%emt 0:09:11]} Bh3+ {[%emt 0:05:16]} 18. Kh1 {[%emt 0:01:27]} f5 {[%emt 0:05:19]} 19. f3 {[%emt 0:19:11]} fxe4 {[%emt 0:10:19]} 20. Nxe4 {[%emt 0:03:38]} Nxe4 {[%emt 0:00:31]} 21. fxe4 {[%emt 0:00:28]} Bh6 {[%emt 0:04:52]} ({Better is} 21... Rf2 $15) 22. Bg4 $11 {[%emt 0:05:40]} Bxg4 {[%emt 0:02:47]} 23. Qxg4 {[%emt 0:03:02]} Qf6 {[%emt 0:03:47]} 24. Qe2 {[%emt 0:05:50]} Qf2 {[%emt 0:09:20]} 25. Qxf2 {[%emt 0:04:52]} Rxf2 {[%emt 0:00:08]} 26. Rg2 {[%emt 0:00:21]} Rcf8 {[%emt 0:01:44]} 27. Kg1 {[%emt 0:00:36]} R2f3 {[%emt 0:03:39][%cal Oc6d4]} 28. Re2 {[%emt 0:03:38]} Rd3 {[%emt 0:07:54]} 29. Kg2 {[%emt 0:04:43]} Nd4 {[%emt 0:03:15]} 30. Bxd4 {[%emt 0:03:41]} exd4 {[%emt 0:00:10]} 31. Ne1 {[%emt 0:04:31]} Re3 {[%emt 0:01:54]} 32. Rxe3 {[%emt 0:00:08]} dxe3 {[%emt 0:00:23][%mdl 4096] Endgame. KRB-KRN} 33. Nf3 {[%emt 0:05:17]} Re8 {[%emt 0:01:34]} 34. Kf1 {[%emt 0:02:38]} Rxe4 {[%emt 0:01:10]} 35. Ke2 {[%emt 0:00:04]} Kf8 {[%emt 0:03:18]} 36. Rd1 {[%emt 0:00:27]} Ke7 {[%emt 0:01:41]} 37. Rd4 {[%emt 0:01:13]} Re6 {[%emt 0:00:26]} (37... Rxd4 $11 {keeps the balance.} 38. Nxd4 Kf6) 38. Rh4 $16 {[%emt 0:01:33][%mdl 1024] White has strong compensation.} g5 {[%emt 0:11:20] Weighted Error Value: White=0.06 (flawless) /Black=0.15 (very precise) .  Mistake:       	White=1     	Black=3      Inaccurate:     	White=2     	Black=1      OK:         	White=13    	Black=11     Best:        	White=2     	Black=2} (38... Bg7 $142) 1/2-1/2

[Event "WWRR B-Group 2024"]
[Site "Wachtebeke"]
[Date "2024.02.12"]
[Round "2.4"]
[White "Dreelinck, Adriaan"]
[Black "Nemegeer, Arne"]
[Result "1/2-1/2"]
[ECO "D02"]
[WhiteElo "2205"]
[BlackElo "2100"]
[Annotator "TA"]
[PlyCount "39"]
[EventDate "2024.02.12"]
[EventType "tourn"]
[EventCountry "BEL"]
[SourceTitle "playchess.com"]
[Source "ChessBase"]
[SourceQuality "1"]
[TimeControl "40/5400+30:900+30"]

{[%evp 9,39,35,46,28,32,23,19,25,22,13,14,14,14,10,16,1,4,-12,11,-20,-17,-29,9,-39,0,0,28,0,0,-89,-77,-124]} 1. Nf3 {[%emt 0:00:07]} Nf6 {[%emt 0:00:02]} 2. g3 {[%emt 0:00:36]} d5 {[%emt 0:00:04]} 3. Bg2 {[%emt 0:00:10]} Nbd7 {[%emt 0:01:27]} 4. d4 {[%emt 0:00:28]} Nb6 {[%emt 0:00:03]} 5. O-O {[%emt 0:01:02]} Bf5 {[%emt 0:00:06]} 6. Nbd2 {[%emt 0:03:43]} h6 {[%emt 0:01:54] [#]} 7. c4 $1 {[%emt 0:04:57] Hoping for cxd5.} e6 {[%emt 0:03:24]} (7... c6 8. Qb3) 8. Ne5 {[%emt 0:08:57] The position is equal.} c6 {[%emt 0:04:09]} 9. b3 {[%emt 0:08:35]} Be7 {[%emt 0:00:09]} 10. Bb2 {[%emt 0:00:43]} O-O {[%emt 0:00:15]} 11. Re1 {[%emt 0:02:48]} Nbd7 {[%emt 0:06:24]} 12. Rc1 {[%emt 0:12:01]} a5 {[%emt 0:03:31]} 13. a3 {[%emt 0:06:58]} Qb6 {[%emt 0:07:06]} 14. c5 {[%emt 0:07:17]} Qc7 {[%emt 0:01:23]} 15. Nxd7 {[%emt 0:04:13]} Nxd7 {[%emt 0:01:41]} 16. f3 {[%emt 0:03:12]} (16. e4 $11 {might be stronger.} dxe4 17. Nxe4 (17. Bxe4 Bxe4 18. Nxe4 Rfd8 $11)) 16... Rfd8 {[%emt 0:07:59]} 17. e4 {[%emt 0:00:54]} dxe4 {[%emt 0:00:04]} 18. fxe4 {[%emt 0:00:08]} Bg6 {[%emt 0:00:03]} 19. Kh1 {[%emt 0:04:02] [#]} (19. e5 $1 $11) 19... e5 $1 $17 {[%emt 0:02:42]} 20. Nc4 {[%emt 0:09:37] Weighted Error Value: White=0.22 (precise) /Black=0.09 (flawless) .  Mistake:       	White=3     	---        Inaccurate:     	White=2     	Black=3      OK:         	White=4     	Black=9      Strong:       	---       	Black=1} (20. Nf3 $142) 1/2-1/2

[Event "WWRR B-Group 2024"]
[Site "Wachtebeke"]
[Date "2024.02.12"]
[Round "2.5"]
[White "Ruzhansky, Elias"]
[Black "Verduyn, Frederic"]
[Result "1/2-1/2"]
[ECO "C55"]
[WhiteElo "2133"]
[BlackElo "2087"]
[Annotator "NA RC"]
[PlyCount "81"]
[EventDate "2024.02.12"]
[EventType "tourn"]
[EventCountry "BEL"]
[SourceTitle "playchess.com"]
[Source "ChessBase"]
[SourceQuality "1"]
[TimeControl "40/5400+30:900+30"]

1. e4 {[%emt 0:00:08]} e5 {[%emt 0:01:19]} 2. Nf3 {[%emt 0:00:06]} Nc6 {[%emt 0:00:13]} 3. Bc4 {[%emt 0:00:11]} Nf6 {[%emt 0:00:27]} 4. d3 {[%emt 0:00:06]} h6 {[%emt 0:00:30]} 5. O-O {[%emt 0:00:26]} d6 {[%emt 0:00:57]} 6. a4 {[%emt 0:00:08]} g6 {[%emt 0:00:54]} 7. Nc3 {[%emt 0:00:14]} Bg7 {[%emt 0:00:56]} 8. h3 {[%emt 0:01:31]} O-O {[%emt 0:01:30]} 9. Be3 {[%emt 0:00:12]} Kh7 {[%emt 0:08:55]} 10. Qd2 {[%emt 0:01:44]} a6 {[%emt 0:02:45]} 11. d4 {[%emt 0:21:52]} Nd7 {[%emt 0:22:29]} 12. Rad1 {[%emt 0:07:07]} f5 {[%emt 0:02:57]} 13. exf5 {[%emt 0:10:05]} Rxf5 {[%emt 0:05:10]} 14. dxe5 {[%emt 0:03:59]} Rxf3 {[%emt 0:00:48]} 15. gxf3 {[%emt 0:01:34]} Ndxe5 {[%emt 0:01:34]} 16. Bd5 {[%emt 0:00:40]} Bxh3 {[%emt 0:04:58]} 17. Rfe1 {[%emt 0:00:12]} Qh4 {[%emt 0:02:27]} 18. Bf4 {[%emt 0:15:09]} Rf8 {[%emt 0:02:30]} 19. Bg3 {[%emt 0:00:27]} Qh5 {[%emt 0:01:05]} 20. Re3 {[%emt 0:03:18]} Ne7 {[%emt 0:07:47]} 21. f4 {[%emt 0:06:31]} Nxd5 {[%emt 0:03:06]} 22. Qxd5 {[%emt 0:00:11]} c6 {[%emt 0:01:21]} 23. Qh1 {[%emt 0:01:37]} Nc4 {[%emt 0:04:27]} 24. Re7 {[%emt 0:00:13]} d5 {[%emt 0:02:15]} 25. f5 {[%emt 0:03:09]} Qxf5 {[%emt 0:03:15]} 26. Nxd5 {[%emt 0:00:46]} Bg4 {[%emt 0:07:46]} 27. Ne3 {[%emt 0:02:46]} Nxe3 {[%emt 0:01:45]} 28. Rdd7 {[%emt 0:00:18]} Qxd7 {[%emt 0:01:10]} 29. Rxd7 {[%emt 0:00:12]} Bxd7 {[%emt 0:01:01]} 30. fxe3 {[%emt 0:00:19]} Bf5 {[%emt 0:01:17]} 31. Qh4 {[%emt 0:04:37]} Re8 {[%emt 0:01:41]} 32. Qb4 {[%emt 0:01:10]} b5 {[%emt 0:01:07]} 33. Qc5 {[%emt 0:01:42]} Re6 {[%emt 0:01:28]} 34. a5 {[%emt 0:00:41]} h5 {[%emt 0:01:49]} 35. c3 {[%emt 0:02:58]} Bd3 {[%emt 0:01:40]} 36. b4 {[%emt 0:03:38]} Bc4 {[%emt 0:01:07]} 37. Qa7 {[%emt 0:01:44]} g5 {[%emt 0:00:27]} 38. Qxa6 {[%emt 0:02:12]} Rxe3 {[%emt 0:01:18]} 39. Kf2 {[%emt 0:02:49]} Re2+ {[%emt 0:00:46]} 40. Kg1 {[%emt 0:00:49]} Bd5 {[%emt 0:00:33]} 41. Kf1 {[%emt 0:18:29]} 1/2-1/2

[Event "WWRR B-Group 2024"]
[Site "Wachtebeke"]
[Date "2024.02.12"]
[Round "3.1"]
[White "Verduyn, Frederic"]
[Black "Toulzac, Pierre-Yves"]
[Result "1-0"]
[ECO "B06"]
[WhiteElo "2087"]
[BlackElo "2046"]
[Annotator "NA RC"]
[PlyCount "41"]
[EventDate "2024.02.12"]
[EventType "tourn"]
[EventCountry "BEL"]
[SourceTitle "playchess.com"]
[Source "ChessBase"]
[SourceQuality "1"]
[TimeControl "40/5400+30:900+30"]

1. d4 {[%emt 0:00:07]} g6 {[%emt 0:00:29]} 2. Nc3 {[%emt 0:01:08]} Bg7 {[%emt 0:00:10]} 3. e4 {[%emt 0:00:37]} d6 {[%emt 0:00:10]} 4. Be3 {[%emt 0:00:52]} a6 {[%emt 0:00:25]} 5. Qd2 {[%emt 0:01:11]} b5 {[%emt 0:00:40]} 6. h4 {[%emt 0:01:27]} h6 {[%emt 0:01:23]} 7. O-O-O {[%emt 0:02:46]} Bb7 {[%emt 0:02:05]} 8. a3 {[%emt 0:01:50]} Nd7 {[%emt 0:00:34]} 9. Nh3 {[%emt 0:08:25]} Rc8 {[%emt 0:02:44]} 10. f4 {[%emt 0:03:22]} c5 {[%emt 0:04:31]} 11. dxc5 {[%emt 0:10:38]} Nxc5 {[%emt 0:06:04]} 12. Bxc5 {[%emt 0:11:17]} Rxc5 {[%emt 0:08:44]} 13. e5 {[%emt 0:00:55]} Qa5 {[%emt 0:03:35]} 14. Nf2 {[%emt 0:03:35]} Rxc3 {[%emt 0:13:25]} 15. bxc3 {[%emt 0:09:00]} Qxa3+ {[%emt 0:13:10]} 16. Kb1 {[%emt 0:00:16]} Nf6 {[%emt 0:00:46]} 17. exf6 {[%emt 0:09:37]} Bxf6 {[%emt 0:00:19]} 18. Rh3 {[%emt 0:01:22]} b4 {[%emt 0:01:23]} 19. Qc1 {[%emt 0:02:08]} Qa5 {[%emt 0:07:54]} 20. Qb2 {[%emt 0:03:52]} O-O {[%emt 0:03:39]} 21. Qxb4 {[%emt 0:02:00]} 1-0

[Event "WWRR B-Group 2024"]
[Site "Wachtebeke"]
[Date "2024.02.12"]
[Round "3.2"]
[White "Nemegeer, Arne"]
[Black "Ruzhansky, Elias"]
[Result "0-1"]
[ECO "C43"]
[WhiteElo "2100"]
[BlackElo "2133"]
[Annotator "NA RC"]
[PlyCount "82"]
[EventDate "2024.02.12"]
[EventType "tourn"]
[EventCountry "BEL"]
[SourceTitle "playchess.com"]
[Source "ChessBase"]
[SourceQuality "1"]
[TimeControl "40/5400+30:900+30"]

1. e4 {[%emt 1:31:00]} e5 {[%emt 0:02:03]} 2. Nf3 {[%emt 0:00:00]} Nf6 {[%emt 0:00:04]} 3. d4 {[%emt 0:00:00]} Nxe4 {[%emt 0:00:16]} 4. Bd3 {[%emt 0:00:00]} d5 {[%emt 0:00:06]} 5. Nxe5 {[%emt 0:00:00]} Nd7 {[%emt 0:00:16]} 6. Nxd7 {[%emt 0:00:00]} Bxd7 {[%emt 0:00:05]} 7. O-O {[%emt 0:00:00]} Nf6 {[%emt 0:00:07]} 8. c4 {[%emt 0:00:00]} Be7 {[%emt 0:02:24]} 9. Nc3 {[%emt 0:00:00]} Be6 {[%emt 0:04:21]} 10. c5 {[%emt 0:00:00]} O-O {[%emt 0:00:31]} 11. Bf4 {[%emt 0:00:00]} c6 {[%emt 0:01:09]} 12. Re1 {[%emt 0:00:00]} Qd7 {[%emt 0:02:28]} 13. Qc2 {[%emt 0:00:00]} Rfe8 {[%emt 0:02:13]} 14. b4 {[%emt 0:00:00]} g6 {[%emt 0:01:23]} 15. b5 {[%emt 0:00:00]} Nh5 {[%emt 0:01:17]} 16. Be3 {[%emt 0:00:00]} Ng7 {[%emt 0:01:06]} 17. Qa4 {[%emt 0:00:00]} Bf5 {[%emt 0:08:07]} 18. Be2 {[%emt 0:00:00]} h5 {[%emt 0:12:27]} 19. h3 {[%emt 0:00:00]} Bd8 {[%emt 0:09:33]} 20. Nb1 {[%emt 0:00:00]} Bxh3 {[%emt 0:17:56]} 21. bxc6 {[%emt 0:00:00]} bxc6 {[%emt 0:00:07]} 22. Nd2 {[%emt 0:00:00]} Bf5 {[%emt 0:01:06]} 23. Nf3 {[%emt 0:00:00]} Bf6 {[%emt 0:00:53]} 24. Bf4 {[%emt 0:00:00]} Ne6 {[%emt 0:03:32]} 25. Be5 {[%emt 0:00:00]} Nxc5 {[%emt 0:02:20]} 26. Qb4 {[%emt 0:00:00]} Ne4 {[%emt 0:00:46]} 27. Bxf6 {[%emt 0:00:00]} Nxf6 {[%emt 0:00:06]} 28. Ne5 {[%emt 0:00:00]} Qe7 {[%emt 0:01:46]} 29. Nxc6 {[%emt 0:00:00]} Qxb4 {[%emt 0:00:11]} 30. Nxb4 {[%emt 0:00:00]} Rab8 {[%emt 0:03:41]} 31. a3 {[%emt 0:00:00]} a5 {[%emt 0:02:23]} 32. Nc6 {[%emt 0:00:00]} Rb6 {[%emt 0:00:07]} 33. Rac1 {[%emt 0:00:00]} Bd3 {[%emt 0:01:20]} 34. Kf1 {[%emt 0:00:00]} Rxe2 {[%emt 0:01:12]} 35. Rxe2 {[%emt 0:00:00]} Rb2 {[%emt 0:00:11]} 36. Rce1 {[%emt 0:00:00]} Ne4 {[%emt 0:02:10]} 37. Ne5 {[%emt 0:00:00]} Nd2+ {[%emt 0:00:49]} 38. Kg1 {[%emt 0:00:00]} Bxe2 {[%emt 0:00:05]} 39. Rxe2 {[%emt 0:00:00]} Nf3+ {[%emt 0:00:08]} 40. Kf1 {[%emt 0:00:00]} Rb1+ {[%emt 0:00:07]} 41. Re1 {[%emt 0:00:00]} Rxe1# {[%emt 0:15:05]} 0-1

[Event "WWRR B-Group 2024"]
[Site "Wachtebeke"]
[Date "2024.02.12"]
[Round "3.3"]
[White "Schrik, Rachid"]
[Black "Dreelinck, Adriaan"]
[Result "1-0"]
[ECO "E94"]
[WhiteElo "2179"]
[BlackElo "2205"]
[Annotator "TA"]
[PlyCount "59"]
[EventDate "2024.02.12"]
[EventType "tourn"]
[EventCountry "BEL"]
[SourceTitle "playchess.com"]
[Source "ChessBase"]
[SourceQuality "1"]
[TimeControl "40/5400+30:900+30"]

{[%evp 20,59,3,0,18,14,19,-45,-35,-42,2,4,37,46,62,22,35,32,35,22,111,113,119,52,259,256,601,591,586,616,1079,1038,1032,1081,1104,1097,1047,1073,1388,1333,6440,6148]} 1. c4 {[%emt 0:05:30]} Nf6 {[%emt 0:00:20]} 2. Nc3 {[%emt 0:01:15]} g6 {[%emt 0:00:29]} 3. d4 {[%emt 0:00:16]} Bg7 {[%emt 0:00:12]} 4. e4 {[%emt 0:00:21]} d6 {[%emt 0:00:10]} 5. Be2 {[%emt 0:00:24]} O-O {[%emt 0:00:49]} 6. Be3 {[%emt 0:01:43]} Nbd7 {[%emt 0:03:14]} 7. Nf3 {[%emt 0:01:02]} e5 {[%emt 0:00:57]} 8. O-O {[%emt 0:01:01]} Qe7 {[%emt 0:01:00]} 9. dxe5 {[%emt 0:16:28]} dxe5 {[%emt 0:00:16]} 10. h3 {[%emt 0:00:25]} c6 {[%emt 0:00:46]} 11. Qc2 {[%emt 0:01:59]} Nc5 {[%emt 0:03:28]} 12. Rfd1 {[%emt 0:10:51]} Nh5 {[%emt 0:05:25]} 13. Nd2 {[%emt 0:14:51]} (13. Rab1 $11) 13... Nf4 $15 {[%emt 0:03:23] Black is slightly better.} 14. Bf1 {[%emt 0:05:02]} g5 {[%emt 0:08:57]} 15. Nb3 {[%emt 0:36:52]} Nxb3 {[%emt 0:06:44]} 16. axb3 {[%emt 0:00:00]} g4 {[%emt 0:01:17]} 17. hxg4 {[%emt 0:00:00] Black should prevent f3.} (17. Na4 {looks sharper.} gxh3 18. g3 Bg4 19. gxf4 Bxd1 20. Qxd1 exf4 21. Bxf4 Qxe4 22. Qg4) 17... Bxg4 {[%emt 0:00:16]} 18. f3 {[%emt 0:00:00]} Bh5 {[%emt 0:04:26]} 19. Qf2 {[%emt 0:00:00]} b6 {[%emt 0:01:26] Inhibits b4.} (19... a6 $11) 20. c5 {[%emt 0:00:00]} Kh8 {[%emt 0:06:39] [#]} 21. g3 {[%emt 0:00:00]} (21. Rd6 $1 $16) 21... Rg8 $2 {[%emt 0:08:42] This costs Black the game.} 22. cxb6 $1 $18 {[%emt 0:00:00]} (22. gxf4 $2 {is the wrong capture.} exf4 23. Bg2 fxe3 24. Qxe3 bxc5 $19) 22... Bh6 $2 {[%emt 0:04:50]} (22... Ne6 23. Rxa7 Rxa7) 23. Rxa7 {[%emt 0:00:00] White is clearly winning.} Rxa7 {[%emt 0:26:51]} 24. bxa7 {[%emt 0:00:00]} Nh3+ {[%emt 0:04:15]} 25. Bxh3 {[%emt 0:00:00]} Bxe3 {[%emt 0:00:07]} 26. Qxe3 {[%emt 0:00:00]} Qh4 {[%emt 0:00:07]} 27. Bg2 {[%emt 0:00:00]} Qxg3 {[%emt 0:00:23]} 28. Qf2 {[%emt 0:00:00] [#] White wants to mate with Qxg3.} Qf4 {[%emt 0:00:57]} 29. Ra1 {[%emt 0:01:38]} Bxf3 {[%emt 0:01:21]} 30. a8=Q {[%emt 0:00:30] Weighted Error Value: White=0.18 (very precise) /Black=0.88.  Loses game:     	---       	Black=1      Mistake:       	White=2     	Black=2      Inaccurate:     	White=1     	Black=3      OK:         	White=4     	Black=1      Best:        	White=2     	Black=1      Strong:       	White=1     	---} 1-0

[Event "WWRR B-Group 2024"]
[Site "Wachtebeke"]
[Date "2024.02.12"]
[Round "3.4"]
[White "Vandenhole, Kobe"]
[Black "Kurt, Sascha"]
[Result "0-1"]
[ECO "D41"]
[WhiteElo "2081"]
[BlackElo "2002"]
[Annotator "NA RC"]
[PlyCount "142"]
[EventDate "2024.02.12"]
[EventType "tourn"]
[EventCountry "BEL"]
[SourceTitle "playchess.com"]
[Source "ChessBase"]
[SourceQuality "1"]
[TimeControl "40/5400+30:900+30"]

1. d4 {[%emt 0:00:05]} d5 {[%emt 0:00:06]} 2. c4 {[%emt 0:00:05]} e6 {[%emt 0:00:04]} 3. Nc3 {[%emt 0:00:14]} Nf6 {[%emt 0:00:05]} 4. cxd5 {[%emt 0:00:03]} Nxd5 {[%emt 0:00:03]} 5. e4 {[%emt 0:00:53]} Nxc3 {[%emt 0:00:04]} 6. bxc3 {[%emt 0:00:05]} c5 {[%emt 0:00:04]} 7. Nf3 {[%emt 0:05:19]} cxd4 {[%emt 0:00:03]} 8. cxd4 {[%emt 0:02:33]} Bb4+ {[%emt 0:00:04]} 9. Bd2 {[%emt 0:00:27]} Bxd2+ {[%emt 0:00:01]} 10. Qxd2 {[%emt 0:00:12]} O-O {[%emt 0:00:06]} 11. Bd3 {[%emt 0:04:54]} Nc6 {[%emt 0:00:30]} 12. e5 {[%emt 0:01:06]} Ne7 {[%emt 0:04:51]} 13. Be4 {[%emt 0:03:10]} Nd5 {[%emt 0:01:03]} 14. O-O {[%emt 0:02:14]} h6 {[%emt 0:01:19]} 15. a4 {[%emt 0:03:46]} b6 {[%emt 0:04:56]} 16. a5 {[%emt 0:00:51]} Bb7 {[%emt 0:01:16]} 17. Rfc1 {[%emt 0:03:28]} Qd7 {[%emt 0:00:48]} 18. h3 {[%emt 0:14:03]} Ne7 {[%emt 0:10:20]} 19. Qf4 {[%emt 0:04:41]} Bxe4 {[%emt 0:01:59]} 20. Qxe4 {[%emt 0:00:06]} Rac8 {[%emt 0:03:13]} 21. axb6 {[%emt 0:00:21]} Rxc1+ {[%emt 0:00:17]} 22. Rxc1 {[%emt 0:00:05]} axb6 {[%emt 0:00:06]} 23. Kh2 {[%emt 0:08:26]} Rc8 {[%emt 0:01:19]} 24. Rb1 {[%emt 0:03:35]} Nd5 {[%emt 0:03:42]} 25. Qd3 {[%emt 0:00:34]} Qa4 {[%emt 0:01:45]} 26. Qb3 {[%emt 0:04:31]} Qxb3 {[%emt 0:01:26]} 27. Rxb3 {[%emt 0:00:07]} Rb8 {[%emt 0:01:16]} 28. Ne1 {[%emt 0:06:34]} Ra8 {[%emt 0:05:38]} 29. Kg3 {[%emt 0:02:22]} Ra4 {[%emt 0:01:41]} 30. Nc2 {[%emt 0:01:30]} Rc4 {[%emt 0:02:29]} 31. Rb2 {[%emt 0:02:56]} Rc3+ {[%emt 0:02:54]} 32. f3 {[%emt 0:02:06]} Rd3 {[%emt 0:00:46]} 33. Nb4 {[%emt 0:01:20]} Rxd4 {[%emt 0:01:24]} 34. Nxd5 {[%emt 0:00:07]} Rxd5 {[%emt 0:00:07]} 35. Rxb6 {[%emt 0:00:14]} Rxe5 {[%emt 0:00:05]} 36. Rb7 {[%emt 0:00:38]} Rf5 {[%emt 0:00:33]} 37. Kf2 {[%emt 0:01:02]} g5 {[%emt 0:01:42]} 38. Kg3 {[%emt 0:03:07]} Rf4 {[%emt 0:01:00]} 39. Kf2 {[%emt 0:03:32]} Kg7 {[%emt 0:00:21]} 40. Ra7 {[%emt 0:00:52]} Kg6 {[%emt 0:00:25]} 41. Rb7 {[%emt 0:17:04]} Ra4 {[%emt 0:15:12]} 42. Rb2 {[%emt 0:00:34]} h5 {[%emt 0:00:28]} 43. Re2 {[%emt 0:01:24]} h4 {[%emt 0:01:30]} 44. Rb2 {[%emt 0:00:09]} f6 {[%emt 0:01:05]} 45. Re2 {[%emt 0:01:39]} Kf5 {[%emt 0:00:37]} 46. Rb2 {[%emt 0:00:28]} Kf4 {[%emt 0:01:02]} 47. Rb6 {[%emt 0:05:59]} Ra2+ {[%emt 0:01:18]} 48. Kf1 {[%emt 0:00:06]} Kg3 {[%emt 0:01:59]} 49. Rxe6 {[%emt 0:00:16]} Rxg2 {[%emt 0:00:49]} 50. Rxf6 {[%emt 0:00:26]} Rf2+ {[%emt 0:00:21]} 51. Kg1 {[%emt 0:00:20]} Rxf3 {[%emt 0:00:06]} 52. Rg6 {[%emt 0:00:35]} Rf5 {[%emt 0:00:07]} 53. Rc6 {[%emt 0:03:25]} Kxh3 {[%emt 0:00:06]} 54. Rc3+ {[%emt 0:00:02]} Kg4 {[%emt 0:00:08]} 55. Kg2 {[%emt 0:00:08]} Rf4 {[%emt 0:00:39]} 56. Ra3 {[%emt 0:00:10]} h3+ {[%emt 0:00:55]} 57. Kh2 {[%emt 0:00:15]} Rf2+ {[%emt 0:00:16]} 58. Kg1 {[%emt 0:00:05]} Rf3 {[%emt 0:00:11]} 59. Ra2 {[%emt 0:00:12]} Kh4 {[%emt 0:00:55]} 60. Kh2 {[%emt 0:01:27]} g4 {[%emt 0:00:25]} 61. Ra4 {[%emt 0:00:45]} Rf2+ {[%emt 0:00:41]} 62. Kg1 {[%emt 0:00:07]} Rb2 {[%emt 0:00:11]} 63. Kh1 {[%emt 0:00:49]} Re2 {[%emt 0:02:27]} 64. Rb4 {[%emt 0:00:22]} Kg3 {[%emt 0:01:45]} 65. Rb3+ {[%emt 0:00:07]} Kf2 {[%emt 0:00:40]} 66. Kh2 {[%emt 0:01:44]} Re3 {[%emt 0:01:25]} 67. Rb2+ {[%emt 0:00:02]} Kf3 {[%emt 0:00:24]} 68. Rb8 {[%emt 0:00:51]} Re2+ {[%emt 0:00:42]} 69. Kh1 {[%emt 0:00:44]} Re1+ {[%emt 0:02:58]} 70. Kh2 {[%emt 0:00:05]} g3+ {[%emt 0:00:11]} 71. Kxh3 {[%emt 0:00:05]} Rh1# {[%emt 0:00:04]} 0-1